[Event "3rd President Cup-A 2024"]
[Site "Tashkent"]
[Date "2024.11.26"]
[Round "6.11"]
[White "Gareyev, Timur"]
[Black "Pingin, Artem"]
[Result "1/2-1/2"]
[ECO "D27"]
[WhiteElo "2552"]
[BlackElo "2447"]
[Annotator "TA"]
[PlyCount "68"]
[EventDate "2024.11.22"]
[EventType "swiss"]
[EventCountry "UZB"]
[SourceTitle "playchess.com"]
[Source "ChessBase"]
[SourceQuality "1"]
[TimeControl "5400+30"]

{[%evp 29,68,0,7,0,2,0,0,0,2,0,4,0,0,0,0,0,0,0,0,0,0,0,0,0,0,0,0,0,8,10,57,51,39,37,47,43,47,63,80,77,87]} 1. d4 {[%emt 0:05:57]} d5 {[%emt 0:00:07][%cal Bd7d5,Bd5c4][%mdl 32]} 2. c4 {[%emt 0:01:06]} dxc4 {[%emt 0:00:05]} 3. Nf3 {[%emt 0:00:39]} Nf6 {[%emt 0:00:05]} 4. Nc3 {[%emt 0:01:10]} a6 {[%emt 0:00:20]} 5. e3 {[%emt 0:01:18]} e6 {[%emt 0:00:47]} 6. a4 {[%emt 0:00:06]} c5 {[%emt 0:00:07]} 7. Bxc4 {[%emt 0:00:03]} Nc6 {[%emt 0:00:07]} 8. O-O {[%emt 0:00:36]} Be7 {[%emt 0:00:28]} 9. Qe2 {[%emt 0:09:20]} cxd4 {[%emt 0:04:29]} 10. Rd1 {[%emt 0:01:08]} e5 {[%emt 0:00:14]} 11. exd4 {[%emt 0:00:09]} exd4 {[%emt 0:00:04]} 12. Nxd4 {[%emt 0:00:06]} Nxd4 {[%emt 0:00:04]} 13. Qe5 {[%emt 0:00:05]} Qd6 {[%emt 0:00:13]} 14. Qxd4 {[%emt 0:31:19]} Qxd4 {[%emt 0:03:26]} 15. Rxd4 {[%emt 0:00:08]} Bc5 {[%emt 0:02:52]} 16. Rd1 {[%emt 0:03:11]} Be6 {[%emt 0:03:31]} 17. Re1 {[%emt 0:13:21][%cal Oc1g5]} O-O {[%emt 0:00:35]} 18. Bxe6 {[%emt 0:00:49] The position is equal.} fxe6 {[%emt 0:00:01]} 19. Kf1 {[%emt 0:03:30]} Rae8 {[%emt 0:10:33]} 20. f3 {[%emt 0:05:11]} e5 {[%emt 0:03:34]} 21. Bg5 {[%emt 0:01:42]} Bd4 {[%emt 0:03:17]} 22. Rac1 {[%emt 0:02:20]} h6 {[%emt 0:07:31]} 23. Bxf6 {[%emt 0:00:57]} Rxf6 {[%emt 0:01:24]} 24. b4 {[%emt 0:08:09]} Bxc3 {[%emt 0:18:15]} 25. Rxc3 $11 {[%emt 0:00:03][%mdl 4096] Endgame. KRR-KRR} Rf4 {[%emt 0:00:05]} 26. Re4 {[%emt 0:04:48]} Rxe4 {[%emt 0:00:34]} 27. fxe4 {[%emt 0:00:02] KR-KR} Rd8 {[%emt 0:00:06]} 28. Rc7 {[%emt 0:01:44]} Rd4 {[%emt 0:00:16]} 29. Rxb7 {[%emt 0:00:24]} Rxe4 {[%emt 0:00:24]} (29... a5 $11) 30. a5 $14 {[%emt 0:00:37]} Kh7 {[%emt 0:06:43]} 31. Rb6 {[%emt 0:00:01][%cal Of1f2]} Kg8 {[%emt 0:03:44]} 32. Kf2 {[%emt 0:00:03][%cal Of2f3]} (32. Rxa6 Rxb4 33. Rb6 Ra4 $11) 32... Kf7 {[%emt 0:00:05]} 33. Kf3 {[%emt 0:00:33]} Rd4 {[%emt 0:00:17]} 34. Ke3 {[%emt 0:00:02]} ({Of course not} 34. Rxa6 Rxb4 35. Rd6 Rf4+ 36. Ke2 Rg4 $11) 34... h5 {[%emt 0:00:38] Weighted Error Value: White=0.01 (flawless) /Black=0.04 (flawless) .  Mistake:       	---       	Black=1      OK:         	White=9     	Black=12     Best:        	White=1     	---} 1/2-1/2

[Event "3rd President Cup-A 2024"]
[Site "Tashkent"]
[Date "2024.11.26"]
[Round "6.12"]
[White "Zarubitski, Viachaslau"]
[Black "Raja Rithvik R"]
[Result "0-1"]
[ECO "D23"]
[WhiteElo "2389"]
[BlackElo "2528"]
[Annotator "RC"]
[PlyCount "130"]
[EventDate "2024.11.22"]
[EventType "swiss"]
[EventCountry "UZB"]
[SourceTitle "playchess.com"]
[Source "ChessBase"]
[SourceQuality "1"]
[TimeControl "5400+30"]

1. d4 {[%emt 0:07:04]} d5 {[%emt 0:00:30]} 2. Nf3 {[%emt 0:00:11]} Nf6 {[%emt 0:00:35]} 3. g3 {[%emt 0:00:04]} c5 {[%emt 0:04:46]} 4. c4 {[%emt 0:01:59]} dxc4 {[%emt 0:04:05]} 5. Qa4+ {[%emt 0:01:37]} Nc6 {[%emt 0:11:45]} 6. dxc5 {[%emt 0:01:35]} Ne4 {[%emt 0:18:07]} 7. Qxc4 {[%emt 0:11:47]} Qa5+ {[%emt 0:00:28]} 8. Bd2 {[%emt 0:00:29]} Nxd2 {[%emt 0:00:08]} 9. Nbxd2 {[%emt 0:00:06]} g6 {[%emt 0:12:53]} 10. a4 {[%emt 0:38:46]} Bg7 {[%emt 0:06:21]} 11. Qb5 {[%emt 0:00:12]} Qb4 {[%emt 0:08:02]} 12. Bg2 {[%emt 0:03:40]} Qxb2 {[%emt 0:08:11]} 13. Rb1 {[%emt 0:00:08]} Qa2 {[%emt 0:00:04]} 14. O-O {[%emt 0:05:08]} O-O {[%emt 0:00:32]} 15. Qb3 {[%emt 0:03:01]} Qxb3 {[%emt 0:00:17]} 16. Rxb3 {[%emt 0:00:13]} Rd8 {[%emt 0:01:09]} 17. Rfb1 {[%emt 0:06:03]} Bf5 {[%emt 0:03:38]} 18. e4 {[%emt 0:00:26]} Bc8 {[%emt 0:00:03]} 19. Nf1 {[%emt 0:01:28]} Na5 {[%emt 0:05:14]} 20. Rb5 {[%emt 0:01:20]} Nc4 {[%emt 0:02:16]} 21. R5b4 {[%emt 0:01:29]} Na5 {[%emt 0:01:22]} 22. Rb5 {[%emt 0:00:55]} Bc3 {[%emt 0:04:16]} 23. Rc1 {[%emt 0:00:41]} a6 {[%emt 0:00:08]} 24. Rb6 {[%emt 0:01:58]} Bg7 {[%emt 0:00:04]} 25. Ne3 {[%emt 0:02:21]} Bh6 {[%emt 0:00:15]} 26. Ne5 {[%emt 0:04:10]} Bxe3 {[%emt 0:01:01]} 27. fxe3 {[%emt 0:00:01]} Be6 {[%emt 0:01:28]} 28. c6 {[%emt 0:01:14]} bxc6 {[%emt 0:03:43]} 29. Nxc6 {[%emt 0:03:41]} Nxc6 {[%emt 0:00:06]} 30. Rbxc6 {[%emt 0:00:23]} Rd3 {[%emt 0:01:19]} 31. R6c3 {[%emt 0:01:22]} Rd2 {[%emt 0:00:14]} 32. Bf1 {[%emt 0:00:55]} Ra2 {[%emt 0:00:59]} 33. Rc7 {[%emt 0:01:56]} Kf8 {[%emt 0:01:41]} 34. Bc4 {[%emt 0:00:33]} Bxc4 {[%emt 0:00:09]} 35. R7xc4 {[%emt 0:00:33]} Rb8 {[%emt 0:01:01]} 36. Rc8+ {[%emt 0:00:14]} Rxc8 {[%emt 0:00:03]} 37. Rxc8+ {[%emt 0:00:03]} Kg7 {[%emt 0:00:02]} 38. Rc4 {[%emt 0:00:09]} Kf6 {[%emt 0:01:00]} 39. h4 {[%emt 0:00:54]} h5 {[%emt 0:01:27]} 40. Kf1 {[%emt 0:01:10]} e6 {[%emt 0:00:28]} 41. Rc7 {[%emt 0:00:29]} Rxa4 {[%emt 0:00:22]} 42. e5+ {[%emt 0:00:07]} Kxe5 {[%emt 0:00:39]} 43. Rxf7 {[%emt 0:00:01]} Ra2 {[%emt 0:00:19]} 44. Rg7 {[%emt 0:00:08]} Kf6 {[%emt 0:00:14]} 45. Rc7 {[%emt 0:00:46]} a5 {[%emt 0:00:16]} 46. Rc5 {[%emt 0:00:12]} a4 {[%emt 0:00:15]} 47. Ra5 {[%emt 0:00:50]} a3 {[%emt 0:00:06]} 48. e4 {[%emt 0:00:48]} Ke7 {[%emt 0:00:59]} 49. Ra6 {[%emt 0:00:23]} Kd7 {[%emt 0:00:43]} 50. Ke1 {[%emt 0:00:29]} Kc7 {[%emt 0:00:15]} 51. Kd1 {[%emt 0:00:29]} Kb7 {[%emt 0:00:02]} 52. Ra4 {[%emt 0:00:16]} Kb6 {[%emt 0:00:39]} 53. Kc1 {[%emt 0:01:24]} Kb5 {[%emt 0:01:35]} 54. Ra8 {[%emt 0:00:02]} Kc4 {[%emt 0:00:38]} 55. Kb1 {[%emt 0:00:59]} Rb2+ {[%emt 0:00:29]} 56. Ka1 {[%emt 0:00:27]} Rb3 {[%emt 0:00:36]} 57. g4 {[%emt 0:01:11]} hxg4 {[%emt 0:00:24]} 58. Rg8 {[%emt 0:00:00]} Rh3 {[%emt 0:00:30]} 59. Rxg6 {[%emt 0:00:00]} g3 {[%emt 0:00:35]} 60. Rg8 {[%emt 0:00:55]} Kd4 {[%emt 0:00:19]} 61. h5 {[%emt 0:00:20]} Kxe4 {[%emt 0:00:27]} 62. h6 {[%emt 0:00:07]} e5 {[%emt 0:00:23]} 63. h7 {[%emt 0:00:12]} Rxh7 {[%emt 0:00:07]} 64. Rxg3 {[%emt 0:00:02]} Kf4 {[%emt 0:00:54]} 65. Rxa3 {[%emt 0:00:02]} Rb7 {[%emt 0:00:09]} 0-1

[Event "3rd President Cup-A 2024"]
[Site "Tashkent"]
[Date "2024.11.26"]
[Round "6.13"]
[White "Saydaliev, Saidakbar"]
[Black "Garv Gaur"]
[Result "1-0"]
[ECO "B13"]
[WhiteElo "2473"]
[BlackElo "2388"]
[Annotator "TA"]
[PlyCount "177"]
[EventDate "2024.11.22"]
[EventType "swiss"]
[EventCountry "UZB"]
[SourceTitle "playchess.com"]
[Source "ChessBase"]
[SourceQuality "1"]
[TimeControl "5400+30"]

{[%evp 103,177,70,70,67,102,102,118,74,102,102,122,41,97,111,111,103,132,111,138,123,130,89,106,0,173,173,146,136,186,140,133,133,565,564,497,248,593,366,356,310,883,694,680,680,620,571,1116,417,422,427,479,184,231,48,50,47,397,337,374,302,443,433,370,174,470,359,29979,29980,29980,29981,29981,29981,29985,29986,29986,29987]} 1. e4 {[%emt 0:00:05]} c6 {[%emt 0:00:24]} 2. d4 {[%emt 0:00:22]} d5 {[%emt 0:00:09]} 3. exd5 {[%emt 0:00:48]} cxd5 {[%emt 0:00:10]} 4. Bd3 {[%emt 0:00:16]} Nc6 {[%emt 0:00:26]} 5. c3 {[%emt 0:00:19]} Qc7 {[%emt 0:03:31]} 6. h3 {[%emt 0:01:03]} Nf6 {[%emt 0:00:05]} 7. Nf3 {[%emt 0:00:48]} g6 {[%emt 0:00:06]} 8. Qc2 {[%emt 0:01:23] B13: Caro-Kann: Exchange Variation and Panov-Botvinnik Attack.} Bg7 {[%emt 0:00:08]} 9. O-O {[%emt 0:00:50]} O-O {[%emt 0:00:28]} 10. Re1 {[%emt 0:00:39]} Nh5 {[%emt 0:01:41] 10...Nd7 is more advanced technology.} 11. Qd1 {[%emt 0:06:08]} Re8 {[%emt 0:04:13]} 12. Nbd2 {[%emt 0:02:50]} Bd7 $146 {[%emt 0:13:43]} ({Predecessor:} 12... Nf4 13. Bf1 Bf5 14. Nb3 Rad8 15. Be3 f6 16. Qd2 g5 17. h4 h6 18. hxg5 hxg5 {1-0 Seo,J (2455)-Pantzar,M (2410) Uppsala Young Champions 7th 2020 (8)}) 13. Nb3 {[%emt 0:05:36]} Rad8 {[%emt 0:02:48]} 14. Be3 {[%emt 0:02:08]} e5 {[%emt 0:06:17]} 15. dxe5 {[%emt 0:02:18]} Nxe5 {[%emt 0:00:07]} 16. Nxe5 {[%emt 0:03:51]} Bxe5 {[%emt 0:00:03]} 17. Nd4 {[%emt 0:09:41]} a6 {[%emt 0:06:31]} 18. Nf3 {[%emt 0:10:55]} Bg7 {[%emt 0:07:00]} 19. Qb3 {[%emt 0:00:19]} b5 {[%emt 0:01:20]} 20. Rad1 {[%emt 0:04:19]} h6 {[%emt 0:08:23]} 21. a3 {[%emt 0:09:48]} Bc6 {[%emt 0:15:30]} 22. Qc2 {[%emt 0:08:01]} Nf4 {[%emt 0:03:16]} 23. Bf1 {[%emt 0:00:19]} Ne6 {[%emt 0:02:41]} 24. Qd2 {[%emt 0:08:10]} h5 {[%emt 0:02:12]} 25. Nd4 {[%emt 0:00:25]} Bb7 {[%emt 0:03:46]} 26. Nxe6 {[%emt 0:03:23]} Rxe6 {[%emt 0:00:16]} 27. Bd4 {[%emt 0:00:11]} Rde8 {[%emt 0:01:52]} 28. Bxg7 {[%emt 0:01:21]} Kxg7 {[%emt 0:01:15]} 29. Qd4+ {[%emt 0:00:40]} Kg8 {[%emt 0:00:05]} 30. Rxe6 {[%emt 0:00:28]} Rxe6 {[%emt 0:00:04]} 31. Qa7 {[%emt 0:01:49]} Qc6 {[%emt 0:00:51]} 32. Qb8+ {[%emt 0:04:30]} Re8 {[%emt 0:02:23]} 33. Qf4 {[%emt 0:00:03]} Re4 {[%emt 0:00:46]} 34. Qg5 {[%emt 0:00:35]} Qe8 {[%emt 0:01:43]} 35. Qd2 {[%emt 0:00:17]} Qc6 {[%emt 0:01:05]} 36. Be2 {[%emt 0:00:53]} Qc7 {[%emt 0:03:32]} 37. Bf3 {[%emt 0:00:22]} Re5 {[%emt 0:00:15]} 38. Qd4 {[%emt 0:01:02]} Qe7 {[%emt 0:00:45]} 39. Kf1 {[%emt 0:00:17]} Bc6 {[%emt 0:02:15]} 40. Qb6 {[%emt 0:01:42]} Bb7 {[%emt 0:00:13]} 41. Qa7 {[%emt 0:00:15]} Kf8 {[%emt 0:00:55]} 42. Qb8+ {[%emt 0:04:20]} Kg7 {[%emt 0:00:08]} 43. a4 {[%emt 0:00:17]} Bc6 {[%emt 0:02:41]} 44. Qb6 {[%emt 0:00:45]} Re6 {[%emt 0:00:56]} 45. Qd4+ {[%emt 0:05:28]} Kh7 {[%emt 0:01:49]} 46. a5 {[%emt 0:00:20]} Qc7 {[%emt 0:00:49]} 47. b4 {[%emt 0:00:58]} Ba8 {[%emt 0:01:16]} 48. g3 {[%emt 0:00:53]} Kg8 {[%emt 0:00:31]} 49. Rd3 {[%emt 0:00:47]} Qe7 {[%emt 0:01:25]} 50. Rd1 {[%emt 0:00:41]} Qc7 {[%emt 0:01:32]} 51. Kg2 {[%emt 0:00:09]} Bc6 {[%emt 0:00:20]} 52. Qc5 {[%emt 0:00:48]} (52. Bxd5 $2 Rd6 (52... Bxd5+ 53. Qxd5 Qxc3 54. Rd4 $11) 53. Qc5 Rxd5 54. Rxd5 Qd7 $19 (54... Bxd5+ 55. Qxd5 Qxc3 56. Qd6 $11)) 52... Re5 {[%emt 0:00:16]} 53. Rd3 {[%emt 0:01:32]} (53. Bxd5 $2 Bxd5+ (53... Rxd5 $2 54. Rxd5 Qd7 55. f3 $19) 54. Kh2 (54. Rxd5 $2 Qb7 $19) 54... Qxc5 55. bxc5 Bc6 56. Rd8+ Kg7 $19) 53... Qb7 {[%emt 0:01:27]} 54. h4 {[%emt 0:00:26]} Rf5 {[%emt 0:00:33]} 55. Qd4 {[%emt 0:00:06]} Qc7 {[%emt 0:00:07]} 56. Re3 {[%emt 0:00:04]} Qd8 {[%emt 0:00:33]} 57. Kg1 {[%emt 0:01:39]} (57. g4 $16 hxg4 58. Bxg4) 57... Rf6 {[%emt 0:00:31]} (57... Qf6 $14 58. Qxf6 Rxf6) 58. Bg2 $16 {[%emt 0:00:13]} Rd6 {[%emt 0:00:20]} 59. Re5 {[%emt 0:00:32]} Qd7 {[%emt 0:00:39]} 60. Kh2 {[%emt 0:00:17]} Bb7 {[%emt 0:00:47]} 61. Bh3 {[%emt 0:00:23]} Qd8 {[%emt 0:00:17]} 62. Qe3 {[%emt 0:01:03]} Bc6 {[%emt 0:00:09]} 63. Qd4 {[%emt 0:00:24]} ({Better is} 63. Re7 $16 {Strongly threatening Qe5.} d4 64. cxd4) 63... Rf6 $2 {[%emt 0:00:53]} (63... Bb7 $1 $11 {and Black stays safe.}) 64. f4 $18 {[%emt 0:00:13]} Rd6 {[%emt 0:00:08]} 65. f5 {[%emt 0:00:14]} Qf6 {[%emt 0:00:27]} (65... f6 $16 {was worth a try.} 66. Re6 Rxe6 67. fxe6 Qe7) 66. fxg6 {[%emt 0:00:43]} (66. Qe3 $18) 66... fxg6 $16 {[%emt 0:00:13]} 67. Kg1 {[%emt 0:00:05]} Qf3 $2 {[%emt 0:01:15][%mdl 8192]} (67... Kf7 $16 68. Qa7+ Bd7) 68. Re3 $18 {[%emt 0:00:06]} Qf7 {[%emt 0:00:14]} 69. Qe5 {[%emt 0:00:14]} (69. Qc5 $142 Qf6 70. Qa7) 69... Qf8 $2 {[%emt 0:00:52]} (69... Rf6 {is tougher.} 70. Be6 Rf1+ 71. Kh2 Rf2+ 72. Kh3 (72. Kg1 Rf1+ 73. Kh2 Rf2+ 74. Kh3 Bd7 $18) 72... Bd7 73. Qxd5 Bxe6+ 74. Rxe6 Kh7) 70. Be6+ {[%emt 0:00:49]} Kh7 {[%emt 0:00:01]} 71. Re2 {[%emt 0:00:10]} d4 $2 {[%emt 0:00:35]} (71... Bd7 72. Bxd5 Bf5 73. Qe7+ Qxe7 74. Rxe7+ Kh6) 72. Rf2 {[%emt 0:00:20]} Bf3 {[%emt 0:00:17]} 73. cxd4 {[%emt 0:00:11]} Rc6 {[%emt 0:00:12]} 74. Qe3 {[%emt 0:00:57]} Qe8 {[%emt 0:00:38]} 75. Qxf3 {[%emt 0:01:34]} (75. d5 $142 Bxd5 76. Qa7+ Kh6 77. Bxd5 (77. Qe3+ Kh7 $18)) 75... Rxe6 $18 {[%emt 0:00:23]} 76. d5 {[%emt 0:00:54]} Re3 {[%emt 0:00:32]} 77. Qf4 $2 {[%emt 0:00:23]} (77. Qf7+ Qxf7 78. Rxf7+ Kg8 79. Kf2) 77... Rd3 {[%emt 0:00:53]} (77... Re1+ $142 78. Kh2 Re2) 78. Qc7+ $2 {[%emt 0:00:42]} (78. Qf7+ $18 Qxf7 79. Rxf7+ Kh6 80. Rd7 Rxg3+ 81. Kf2) 78... Kh6 $14 {[%emt 0:00:55]} 79. Qd6 $1 {[%emt 0:00:17]} Qe1+ $2 {[%emt 0:00:38][%mdl 8192]} (79... Qe3 $14 80. Kg2 (80. Qxa6 $2 {gets mated.} Qxg3+ 81. Kf1 Rd1+ 82. Ke2 Qd3#) 80... Rd2 81. Rxd2 Qxd2+ 82. Kh3 Qd1 83. Qf8+ (83. Qxa6 $2 Qh1#) 83... Kh7 84. Qf7+ Kh6) 80. Kg2 $18 {[%emt 0:00:00]} Qe4+ {[%emt 0:00:10]} 81. Kh2 {[%emt 0:00:01]} Qe8 {[%emt 0:00:32]} (81... Qd4 {was necessary.} 82. Qf8+ Qg7 83. Qf4+ Kh7) 82. Qf4+ $18 {[%emt 0:00:19]} ({Stronger than} 82. Qxa6 Qe5 83. Rg2 Rd4 $11) 82... Kh7 {[%emt 0:00:15]} 83. d6 {[%emt 0:00:17]} (83. Qf6 $142) 83... Rd5 $2 {[%emt 0:00:44]} (83... Rd1 84. Rd2 Qe1 85. Rxd1 Qxd1) 84. Rc2 {[%emt 0:01:11]} Rf5 $2 {[%emt 0:00:41]} (84... Kg8 $18 85. Rf2 Kh7) 85. Rc7+ {[%emt 0:00:54]} Kg8 {[%emt 0:00:05]} 86. Qd2 {[%emt 0:00:03]} Qf8 {[%emt 0:00:30]} 87. Rc2 {[%emt 0:00:06]} Qf7 {[%emt 0:00:51]} 88. d7 {[%emt 0:00:13]} Rd5 {[%emt 0:00:04]} 89. d8=Q+ {[%emt 0:00:07]} 1-0

[Event "3rd President Cup-A 2024"]
[Site "Tashkent"]
[Date "2024.11.26"]
[Round "6.14"]
[White "Zhang, Ziji"]
[Black "Ayush Sharma"]
[Result "0-1"]
[ECO "D11"]
[WhiteElo "2380"]
[BlackElo "2464"]
[Annotator "RC"]
[PlyCount "176"]
[EventDate "2024.11.22"]
[EventType "swiss"]
[EventCountry "UZB"]
[SourceTitle "playchess.com"]
[Source "ChessBase"]
[SourceQuality "1"]
[TimeControl "5400+30"]

1. d4 {[%emt 0:00:07]} Nf6 {[%emt 0:00:09]} 2. g3 {[%emt 0:00:08]} d5 {[%emt 0:01:56]} 3. Bg2 {[%emt 0:00:23]} c6 {[%emt 0:01:45]} 4. Nf3 {[%emt 0:02:29]} Bf5 {[%emt 0:00:17]} 5. O-O {[%emt 0:02:50]} e6 {[%emt 0:00:20]} 6. c4 {[%emt 0:02:13]} Nbd7 {[%emt 0:05:17]} 7. cxd5 {[%emt 0:09:46]} exd5 {[%emt 0:01:35]} 8. Qb3 {[%emt 0:00:08]} Qb6 {[%emt 0:02:53]} 9. Qe3+ {[%emt 0:01:34]} Be7 {[%emt 0:00:12]} 10. Nc3 {[%emt 0:00:45]} h6 {[%emt 0:08:28]} 11. Nh4 {[%emt 0:11:26]} Be6 {[%emt 0:07:23]} 12. Qd3 {[%emt 0:04:16]} g5 {[%emt 0:06:32]} 13. Nf3 {[%emt 0:03:37]} g4 {[%emt 0:07:05]} 14. Nh4 {[%emt 0:02:47]} O-O-O {[%emt 0:05:01]} 15. Rd1 {[%emt 0:03:03]} Ne8 {[%emt 0:11:00]} 16. Nf5 {[%emt 0:03:29]} Bg5 {[%emt 0:01:54]} 17. Rb1 {[%emt 0:04:38]} Kb8 {[%emt 0:07:34]} 18. Bxg5 {[%emt 0:01:37]} hxg5 {[%emt 0:00:05]} 19. b4 {[%emt 0:00:09]} Nef6 {[%emt 0:07:01]} 20. Ne3 {[%emt 0:18:40]} Ka8 {[%emt 0:01:21]} 21. b5 {[%emt 0:02:09]} Qa5 {[%emt 0:01:11]} 22. bxc6 {[%emt 0:06:02]} bxc6 {[%emt 0:00:01]} 23. Qc2 {[%emt 0:00:16]} Nb6 {[%emt 0:01:20]} 24. Nb5 {[%emt 0:03:10]} Kb7 {[%emt 0:03:41]} 25. Nc3 {[%emt 0:10:57]} Nfd7 {[%emt 0:02:09]} 26. Rb3 {[%emt 0:00:13]} Kb8 {[%emt 0:05:36]} 27. Qb2 {[%emt 0:00:38]} Qa6 {[%emt 0:00:12]} 28. Rb1 {[%emt 0:01:16]} Ka8 {[%emt 0:07:57]} 29. Ra3 {[%emt 0:01:53]} Qb7 {[%emt 0:00:01]} 30. Qb4 {[%emt 0:00:12]} Rb8 {[%emt 0:00:50]} 31. Qd6 {[%emt 0:01:40]} Rhc8 {[%emt 0:00:57]} 32. Qe7 {[%emt 0:00:24]} Rg8 {[%emt 0:01:47]} 33. Rbb3 {[%emt 0:01:54]} Nc8 {[%emt 0:01:54]} 34. Rxb7 {[%emt 0:01:07]} Rxb7 {[%emt 0:00:01]} 35. Rxa7+ {[%emt 0:00:16]} Kxa7 {[%emt 0:01:37]} 36. Qa3+ {[%emt 0:00:03]} Kb8 {[%emt 0:00:07]} 37. Nc2 {[%emt 0:00:16]} Rb6 {[%emt 0:01:09]} 38. Nb4 {[%emt 0:00:45]} Na7 {[%emt 0:00:20]} 39. e4 {[%emt 0:00:17]} dxe4 {[%emt 0:00:20]} 40. Bxe4 {[%emt 0:00:03]} Rc8 {[%emt 0:00:48]} 41. Na4 {[%emt 0:01:03]} Rb7 {[%emt 0:00:15]} 42. Na6+ {[%emt 0:01:25]} Ka8 {[%emt 0:00:01]} 43. N6c5 {[%emt 0:00:10]} Rb5 {[%emt 0:01:08]} 44. Nxd7 {[%emt 0:00:54]} Bxd7 {[%emt 0:00:01]} 45. Qd6 {[%emt 0:00:14]} Be6 {[%emt 0:00:46]} 46. Nc3 {[%emt 0:00:34]} Rb7 {[%emt 0:00:35]} 47. a4 {[%emt 0:01:13]} Rd7 {[%emt 0:00:31]} 48. Qc5 {[%emt 0:00:06]} Rcd8 {[%emt 0:00:50]} 49. Bxc6+ {[%emt 0:00:23]} Nxc6 {[%emt 0:00:02]} 50. Qxc6+ {[%emt 0:00:04]} Rb7 {[%emt 0:00:30]} 51. d5 {[%emt 0:00:29]} Rc8 {[%emt 0:00:16]} 52. Qa6+ {[%emt 0:00:04]} Ra7 {[%emt 0:00:03]} 53. Qd3 {[%emt 0:00:11]} Bd7 {[%emt 0:00:18]} 54. Qd4 {[%emt 0:00:25]} Rac7 {[%emt 0:01:52]} 55. Nb5 {[%emt 0:00:08]} Rc5 {[%emt 0:00:08]} 56. Qe5 {[%emt 0:01:16]} Bc6 {[%emt 0:00:19]} 57. Qxg5 {[%emt 0:02:07]} Bxd5 {[%emt 0:00:23]} 58. f4 {[%emt 0:00:36]} gxf3 {[%emt 0:00:45]} 59. Qf6 {[%emt 0:00:15]} Bb7 {[%emt 0:00:52]} 60. Qb6 {[%emt 0:00:37]} Rc1+ {[%emt 0:00:13]} 61. Kf2 {[%emt 0:00:01]} R8c2+ {[%emt 0:00:15]} 62. Ke3 {[%emt 0:00:02]} Re2+ {[%emt 0:00:15]} 63. Kd3 {[%emt 0:00:50]} Be4+ {[%emt 0:01:06]} 64. Kd4 {[%emt 0:00:01]} Rd1+ {[%emt 0:00:06]} 65. Kc3 {[%emt 0:00:15]} Rd7 {[%emt 0:00:53]} 66. Nd6 {[%emt 0:00:33]} Rc2+ {[%emt 0:00:23]} 67. Kb3 {[%emt 0:00:15]} Bd3 {[%emt 0:00:55]} 68. Qa5+ {[%emt 0:00:54]} Kb8 {[%emt 0:00:01]} 69. Qb6+ {[%emt 0:00:22]} Ka8 {[%emt 0:00:01]} 70. Qe3 {[%emt 0:00:53]} Rxd6 {[%emt 0:00:27]} 71. Qe8+ {[%emt 0:00:05]} Kb7 {[%emt 0:00:03]} 72. Qxf7+ {[%emt 0:00:16]} Rc7 {[%emt 0:00:13]} 73. Qxf3+ {[%emt 0:00:04]} Ka7 {[%emt 0:00:45]} 74. a5 {[%emt 0:00:29]} Bc4+ {[%emt 0:00:20]} 75. Kb4 {[%emt 0:00:06]} Rdc6 {[%emt 0:00:35]} 76. Qe3+ {[%emt 0:01:15]} Ka6 {[%emt 0:00:06]} 77. h4 {[%emt 0:00:12]} Rb7+ {[%emt 0:00:37]} 78. Ka4 {[%emt 0:00:03]} Bb3+ {[%emt 0:00:42]} 79. Ka3 {[%emt 0:00:04]} Be6 {[%emt 0:00:39]} 80. Qd3+ {[%emt 0:00:46]} Kxa5 {[%emt 0:01:43]} 81. Qd8+ {[%emt 0:00:37]} Ka6 {[%emt 0:00:04]} 82. Qa8+ {[%emt 0:00:28]} Kb6 {[%emt 0:00:05]} 83. Qd8+ {[%emt 0:00:15]} Ka7 {[%emt 0:00:04]} 84. Qd4+ {[%emt 0:00:08]} Ka8 {[%emt 0:00:42]} 85. Qd8+ {[%emt 0:00:26]} Rc8 {[%emt 0:00:42]} 86. Qd6 {[%emt 0:00:51]} Rc3+ {[%emt 0:00:23]} 87. Ka4 {[%emt 0:00:03]} Bd7+ {[%emt 0:00:04]} 88. Ka5 {[%emt 0:00:05]} Rb5+ {[%emt 0:00:09]} 0-1

[Event "3rd President Cup-A 2024"]
[Site "Tashkent"]
[Date "2024.11.26"]
[Round "6.15"]
[White "Suyarov, Mukhammadzokhid"]
[Black "Panda Sambit"]
[Result "1-0"]
[ECO "B13"]
[WhiteElo "2464"]
[BlackElo "2380"]
[Annotator "RC"]
[PlyCount "95"]
[EventDate "2024.11.22"]
[EventType "swiss"]
[EventCountry "UZB"]
[SourceTitle "playchess.com"]
[Source "ChessBase"]
[SourceQuality "1"]
[TimeControl "5400+30"]

1. e4 {[%emt 0:00:02]} c6 {[%emt 0:05:06]} 2. d4 {[%emt 0:00:33]} d5 {[%emt 0:00:13]} 3. exd5 {[%emt 0:00:27]} cxd5 {[%emt 0:00:06]} 4. c4 {[%emt 0:00:23]} Nf6 {[%emt 0:00:17]} 5. Nc3 {[%emt 0:00:29]} Nc6 {[%emt 0:00:41]} 6. Nf3 {[%emt 0:00:31]} a6 {[%emt 0:01:01]} 7. Bg5 {[%emt 0:09:08]} Be6 {[%emt 0:03:05]} 8. Be2 {[%emt 0:11:57]} g6 {[%emt 0:10:34]} 9. Bxf6 {[%emt 0:06:05]} exf6 {[%emt 0:00:13]} 10. O-O {[%emt 0:00:19]} Bg7 {[%emt 0:12:50]} 11. Qd2 {[%emt 0:07:08]} O-O {[%emt 0:02:02]} 12. Rad1 {[%emt 0:00:35]} h6 {[%emt 0:03:43]} 13. Ne1 {[%emt 0:11:33]} Qd7 {[%emt 0:10:22]} 14. Nc2 {[%emt 0:02:47]} Ne7 {[%emt 0:03:41]} 15. Ne3 {[%emt 0:02:14]} Rfd8 {[%emt 0:01:22]} 16. Bf3 {[%emt 0:08:28]} dxc4 {[%emt 0:03:08]} 17. d5 {[%emt 0:02:29]} Nc8 {[%emt 0:06:24]} 18. Qe2 {[%emt 0:06:41]} Bf5 {[%emt 0:00:50]} 19. Nxc4 {[%emt 0:00:21]} Re8 {[%emt 0:00:43]} 20. Qd2 {[%emt 0:01:24]} Bg4 {[%emt 0:07:43]} 21. Qf4 {[%emt 0:07:07]} Bxf3 {[%emt 0:03:29]} 22. Qxf3 {[%emt 0:01:06]} b5 {[%emt 0:00:18]} 23. d6 {[%emt 0:03:49]} Rb8 {[%emt 0:00:26]} 24. Na5 {[%emt 0:03:33]} Rb6 {[%emt 0:20:30]} 25. Nd5 {[%emt 0:00:41]} Rxd6 {[%emt 0:01:43]} 26. Nb7 {[%emt 0:00:11]} Rxd5 {[%emt 0:01:50]} 27. Qxd5 {[%emt 0:00:12]} Qxd5 {[%emt 0:00:41]} 28. Rxd5 {[%emt 0:00:09]} Nb6 {[%emt 0:00:31]} 29. Rd6 {[%emt 0:01:32]} Nc4 {[%emt 0:00:25]} 30. Rxa6 {[%emt 0:00:07]} Nxb2 {[%emt 0:00:08]} 31. Nd6 {[%emt 0:00:16]} Re6 {[%emt 0:01:22]} 32. Ra8+ {[%emt 0:00:17]} Kh7 {[%emt 0:00:23]} 33. Nxb5 {[%emt 0:00:27]} Rb6 {[%emt 0:00:09]} 34. Nd4 {[%emt 0:00:54]} f5 {[%emt 0:00:05]} 35. Nf3 {[%emt 0:00:07]} g5 {[%emt 0:00:28]} 36. g3 {[%emt 0:01:22]} Bf6 {[%emt 0:00:15]} 37. Rb1 {[%emt 0:00:49]} Rd6 {[%emt 0:00:39]} 38. Rb8 {[%emt 0:00:17]} Na4 {[%emt 0:00:46]} 39. h3 {[%emt 0:05:12]} Kg7 {[%emt 0:01:01]} 40. R1b5 {[%emt 0:00:51]} g4 {[%emt 0:00:46]} 41. hxg4 {[%emt 0:00:36]} fxg4 {[%emt 0:00:09]} 42. Nh2 {[%emt 0:00:18]} Nc3 {[%emt 0:00:41]} 43. Ra5 {[%emt 0:00:24]} Rd4 {[%emt 0:00:27]} 44. a3 {[%emt 0:00:28]} Re4 {[%emt 0:00:43]} 45. Kg2 {[%emt 0:01:22]} Be5 {[%emt 0:00:27]} 46. Rb4 {[%emt 0:01:01]} Bd4 {[%emt 0:00:04]} 47. Nxg4 {[%emt 0:00:14]} h5 {[%emt 0:00:56]} 48. Ne3 {[%emt 0:00:20]} 1-0